[Event "Titled Tuesday Blitz May 10 Early 2022"]
[White "Mica, Marek"]
[Black "Cunha, Lucas Aguiar"]
[WhiteFideId "382884"]
[BlackFideId "2125404"]
[WhiteElo "2100"]
[BlackElo "2361"]
[Result "0-1"]
[Round "01"]
[TimeControl "180+1"]
[Date "2022.05.11"]
[WhiteClock "0:01:02"]
[BlackClock "0:00:17"]

1. Nf3 {[%clk 0:03:00]}  d5 {[%clk 0:02:20]} 2. g3 {[%clk 0:02:59]}  c5 {[%clk 0:02:20]} 3. Bg2 {[%clk 0:02:59]}  Nc6 {[%clk 0:02:21]} 4. O-O {[%clk 0:02:59]}  Nf6 {[%clk 0:02:21]} 5. d4 {[%clk 0:02:58]}  e6 {[%clk 0:02:21]} 6. c4 {[%clk 0:02:57]}  dxc4 {[%clk 0:02:21]} 7. Qa4 {[%clk 0:02:56]}  cxd4 {[%clk 0:02:20]} 8. Ne5 {[%clk 0:02:49]}  Bd7 {[%clk 0:02:19]} 9. Nxc6 {[%clk 0:02:46]}  Qb6 {[%clk 0:02:19]} 10. Qxc4 {[%clk 0:02:43]}  Bxc6 {[%clk 0:02:18]} 11. Bxc6+ {[%clk 0:02:42]}  bxc6 {[%clk 0:02:15]} 12. b3 {[%clk 0:02:39]}  Rd8 {[%clk 0:02:08]} 13. Bb2 {[%clk 0:02:37]}  Be7 {[%clk 0:01:58]} 14. Nd2 {[%clk 0:02:37]}  O-O {[%clk 0:01:58]} 15. Rac1 {[%clk 0:02:37]}  c5 {[%clk 0:01:57]} 16. Rfd1 {[%clk 0:02:32]}  Rd5 {[%clk 0:01:56]} 17. Nf3 {[%clk 0:02:12]}  Rfd8 {[%clk 0:01:54]} 18. Ne1 {[%clk 0:02:10]}  h5 {[%clk 0:01:44]} 19. Nd3 {[%clk 0:02:10]}  Nd7 {[%clk 0:01:41]} 20. e4 {[%clk 0:02:03]}  dxe3 {[%clk 0:01:39]} 21. fxe3 {[%clk 0:02:04]}  Bg5 {[%clk 0:01:36]} 22. e4 {[%clk 0:01:50]}  Bxc1 {[%clk 0:00:48]} 23. exd5 {[%clk 0:01:50]}  Bxb2 {[%clk 0:00:48]} 24. Nxb2 {[%clk 0:01:48]}  Ne5 {[%clk 0:00:48]} 25. Qe4 {[%clk 0:01:46]}  c4+ {[%clk 0:00:38]} 26. Kg2 {[%clk 0:01:42]}  Ng4 {[%clk 0:00:35]} 27. Rf1 {[%clk 0:01:30]}  Ne3+ {[%clk 0:00:31]} 28. Kg1 {[%clk 0:01:22]}  Nxf1+ {[%clk 0:00:31]} 29. Kxf1 {[%clk 0:01:23]}  exd5 {[%clk 0:00:28]} 30. Qf3 {[%clk 0:01:21]}  cxb3 {[%clk 0:00:24]} 31. axb3 {[%clk 0:01:22]}  Rb8 {[%clk 0:00:22]} 32. Nd3 {[%clk 0:01:18]}  Qxb3 {[%clk 0:00:21]} 33. Kg2 {[%clk 0:01:15]}  Qc2+ {[%clk 0:00:20]} 34. Nf2 {[%clk 0:01:10]}  d4 {[%clk 0:00:19]} 35. Qxh5 {[%clk 0:00:59]}  Rb2 {[%clk 0:00:16]} 36. Qf3 {[%clk 0:00:56]}  Qxf2+ {[%clk 0:00:16]} 37. Qxf2 {[%clk 0:00:56]}  Rxf2+ {[%clk 0:00:17]} 38. Kxf2 {[%clk 0:00:57]}  a5 {[%clk 0:00:18]} 39. Ke2 {[%clk 0:00:58]}  a4 {[%clk 0:00:18]} 40. Kd3 {[%clk 0:00:59]}  a3 {[%clk 0:00:19]} 41. Kxd4 {[%clk 0:00:59]}  a2 {[%clk 0:00:19]} 42. Kd3 {[%clk 0:00:59]}  a1=Q {[%clk 0:00:19]} 43. Ke2 {[%clk 0:01:00]}  Qh1 {[%clk 0:00:19]} 44. Kf2 {[%clk 0:01:01]}  Qxh2+ {[%clk 0:00:19]} 45. Kf3 {[%clk 0:01:02]}  f5 {[%clk 0:00:19]} 46. Kf4 {[%clk 0:01:02]}  Qf2+ {[%clk 0:00:19]} 47. Kg5 {[%clk 0:01:02]}  Qxg3+ {[%clk 0:00:19]} 48. Kh5 {[%clk 0:01:02]}  Qg4# {[%clk 0:00:17]} 0-1


[Site "https://www.chess.com"]

[Event "Titled Tuesday Blitz May 10 Early 2022"]
[White "Nilsen, Tobias Lang"]
[Black "Vignesh, N R"]
[WhiteFideId "1521624"]
[BlackFideId "25012215"]
[WhiteElo "2014"]
[BlackElo "2363"]
[Result "0-1"]
[Round "01"]
[TimeControl "180+1"]
[Date "2022.05.11"]
[WhiteClock "0:00:19"]
[BlackClock "0:00:22"]

1. f4 {[%clk 0:03:00]}  d5 {[%clk 0:02:56]} 2. Nf3 {[%clk 0:03:00]}  Nc6 {[%clk 0:02:56]} 3. g3 {[%clk 0:02:59]}  Bg4 {[%clk 0:02:55]} 4. Bg2 {[%clk 0:02:59]}  Bxf3 {[%clk 0:02:55]} 5. Bxf3 {[%clk 0:02:59]}  e5 {[%clk 0:02:55]} 6. d3 {[%clk 0:03:00]}  Nf6 {[%clk 0:02:54]} 7. Nc3 {[%clk 0:02:59]}  Bc5 {[%clk 0:02:50]} 8. e4 {[%clk 0:02:26]}  dxe4 {[%clk 0:02:36]} 9. Nxe4 {[%clk 0:02:22]}  Nxe4 {[%clk 0:02:33]} 10. Bxe4 {[%clk 0:02:23]}  O-O {[%clk 0:02:28]} 11. Qe2 {[%clk 0:01:34]}  Nd4 {[%clk 0:02:22]} 12. Qg2 {[%clk 0:01:32]}  exf4 {[%clk 0:01:40]} 13. Bxf4 {[%clk 0:01:27]}  c6 {[%clk 0:01:39]} 14. O-O-O {[%clk 0:01:16]}  f5 {[%clk 0:01:36]} 15. Bf3 {[%clk 0:01:12]}  Qd7 {[%clk 0:01:32]} 16. Rde1 {[%clk 0:01:00]}  Rae8 {[%clk 0:01:25]} 17. Bh5 {[%clk 0:00:53]}  g6 {[%clk 0:01:24]} 18. Bd1 {[%clk 0:00:52]}  Ne6 {[%clk 0:01:18]} 19. Be5 {[%clk 0:00:49]}  Bd4 {[%clk 0:01:14]} 20. Bxd4 {[%clk 0:00:45]}  Qxd4 {[%clk 0:01:13]} 21. Qd2 {[%clk 0:00:37]}  f4 {[%clk 0:01:09]} 22. c3 {[%clk 0:00:35]}  Qd6 {[%clk 0:01:04]} 23. gxf4 {[%clk 0:00:34]}  Nxf4 {[%clk 0:01:03]} 24. d4 {[%clk 0:00:33]}  Kg7 {[%clk 0:00:55]} 25. h4 {[%clk 0:00:26]}  h6 {[%clk 0:00:48]} 26. h5 {[%clk 0:00:26]}  g5 {[%clk 0:00:48]} 27. Bc2 {[%clk 0:00:23]}  Re7 {[%clk 0:00:20]} 28. Rxe7+ {[%clk 0:00:22]}  Qxe7 {[%clk 0:00:21]} 29. Re1 {[%clk 0:00:23]}  Qf7 {[%clk 0:00:21]} 30. Qe3 {[%clk 0:00:20]}  Ng2 {[%clk 0:00:19]} 31. Qe5+ {[%clk 0:00:20]}  Qf6 {[%clk 0:00:19]} 32. Qxf6+ {[%clk 0:00:20]}  Rxf6 {[%clk 0:00:19]} 33. Rg1 {[%clk 0:00:12]}  Nf4 {[%clk 0:00:19]} 34. Bd1 {[%clk 0:00:13]}  Re6 {[%clk 0:00:18]} 35. Kd2 {[%clk 0:00:12]}  Kf6 {[%clk 0:00:18]} 36. b3 {[%clk 0:00:10]}  Rd6 {[%clk 0:00:18]} 37. Bf3 {[%clk 0:00:09]}  c5 {[%clk 0:00:17]} 38. Ke3 {[%clk 0:00:09]}  cxd4+ {[%clk 0:00:17]} 39. cxd4 {[%clk 0:00:10]}  b6 {[%clk 0:00:17]} 40. Rc1 {[%clk 0:00:09]}  Re6+ {[%clk 0:00:17]} 41. Kd2 {[%clk 0:00:09]}  Kf5 {[%clk 0:00:17]} 42. Rc7 {[%clk 0:00:08]}  g4 {[%clk 0:00:17]} 43. Bd1 {[%clk 0:00:09]}  g3 {[%clk 0:00:17]} 44. Bf3 {[%clk 0:00:07]}  g2 {[%clk 0:00:15]} 45. Rg7 {[%clk 0:00:08]}  Kf6 {[%clk 0:00:13]} 46. Rg3 {[%clk 0:00:07]}  Kf5 {[%clk 0:00:12]} 47. Bg4+ {[%clk 0:00:07]}  Kf6 {[%clk 0:00:11]} 48. Bxe6 {[%clk 0:00:07]}  Kxe6 {[%clk 0:00:11]} 49. Ke3 {[%clk 0:00:08]}  Kf5 {[%clk 0:00:11]} 50. Kf2 {[%clk 0:00:07]}  Nxh5 {[%clk 0:00:11]} 51. Rf3+ {[%clk 0:00:07]}  Ke4 {[%clk 0:00:09]} 52. Kxg2 {[%clk 0:00:06]}  Nf4+ {[%clk 0:00:09]} 53. Kg3 {[%clk 0:00:07]}  Ne2+ {[%clk 0:00:08]} 54. Kf2 {[%clk 0:00:07]}  Nxd4 {[%clk 0:00:09]} 55. Rh3 {[%clk 0:00:07]}  Nb5 {[%clk 0:00:07]} 56. Rxh6 {[%clk 0:00:07]}  Nc3 {[%clk 0:00:07]} 57. a4 {[%clk 0:00:07]}  Kd4 {[%clk 0:00:08]} 58. Rh7 {[%clk 0:00:07]}  a5 {[%clk 0:00:07]} 59. Rh5 {[%clk 0:00:07]}  Ne4+ {[%clk 0:00:06]} 60. Ke2 {[%clk 0:00:07]}  Ng3+ {[%clk 0:00:07]} 61. Kd2 {[%clk 0:00:04]}  Nxh5 {[%clk 0:00:08]} 62. Kc2 {[%clk 0:00:05]}  Nf4 {[%clk 0:00:08]} 63. Kb2 {[%clk 0:00:05]}  Nd3+ {[%clk 0:00:08]} 64. Ka2 {[%clk 0:00:06]}  Nb4+ {[%clk 0:00:08]} 65. Ka3 {[%clk 0:00:06]}  Kd3 {[%clk 0:00:09]} 66. Kb2 {[%clk 0:00:07]}  Kd2 {[%clk 0:00:09]} 67. Ka3 {[%clk 0:00:08]}  Nd5 {[%clk 0:00:09]} 68. Kb2 {[%clk 0:00:09]}  Kd3 {[%clk 0:00:08]} 69. Ka3 {[%clk 0:00:10]}  Kc3 {[%clk 0:00:09]} 70. Ka2 {[%clk 0:00:10]}  Kb4 {[%clk 0:00:09]} 71. Kb2 {[%clk 0:00:10]}  Nc3 {[%clk 0:00:10]} 72. Kc2 {[%clk 0:00:10]}  Nxa4 {[%clk 0:00:11]} 73. bxa4 {[%clk 0:00:10]}  Kxa4 {[%clk 0:00:11]} 74. Kb2 {[%clk 0:00:11]}  b5 {[%clk 0:00:12]} 75. Ka2 {[%clk 0:00:12]}  b4 {[%clk 0:00:13]} 76. Kb2 {[%clk 0:00:13]}  b3 {[%clk 0:00:14]} 77. Ka1 {[%clk 0:00:13]}  Kb4 {[%clk 0:00:15]} 78. Kb1 {[%clk 0:00:14]}  Ka3 {[%clk 0:00:15]} 79. Ka1 {[%clk 0:00:15]}  b2+ {[%clk 0:00:15]} 80. Kb1 {[%clk 0:00:15]}  a4 {[%clk 0:00:15]} 81. Kc2 {[%clk 0:00:15]}  Ka2 {[%clk 0:00:16]} 82. Kd3 {[%clk 0:00:15]}  b1=Q+ {[%clk 0:00:17]} 83. Kd4 {[%clk 0:00:16]}  Qb2+ {[%clk 0:00:17]} 84. Kd5 {[%clk 0:00:16]}  Kb1 {[%clk 0:00:18]} 85. Kd6 {[%clk 0:00:17]}  a3 {[%clk 0:00:19]} 86. Ke7 {[%clk 0:00:18]}  a2 {[%clk 0:00:20]} 87. Kf7 {[%clk 0:00:19]}  a1=Q {[%clk 0:00:21]} 88. Ke7 {[%clk 0:00:19]}  Qaa2 {[%clk 0:00:22]} 0-1


[Site "https://www.chess.com"]

[Event "Titled Tuesday Blitz May 10 Early 2022"]
[White "Omelja, Artem"]
[Black "Silva, Mariana Sofia T."]
[WhiteFideId "14119846"]
[BlackFideId "1911899"]
[WhiteElo "2382"]
[BlackElo "1825"]
[Result "1-0"]
[Round "01"]
[TimeControl "180+1"]
[Date "2022.05.11"]
[WhiteClock "0:00:03"]
[BlackClock "0:00:01"]

1. d4 {[%clk 0:02:58]}  Nf6 {[%clk 0:02:59]} 2. c4 {[%clk 0:02:56]}  e6 {[%clk 0:02:58]} 3. Nf3 {[%clk 0:02:54]}  d5 {[%clk 0:02:56]} 4. Nc3 {[%clk 0:02:50]}  c5 {[%clk 0:02:53]} 5. cxd5 {[%clk 0:02:46]}  exd5 {[%clk 0:02:52]} 6. Bg5 {[%clk 0:02:45]}  c4 {[%clk 0:02:24]} 7. g3 {[%clk 0:02:20]}  Be7 {[%clk 0:02:12]} 8. Bg2 {[%clk 0:02:19]}  Be6 {[%clk 0:02:06]} 9. O-O {[%clk 0:02:12]}  O-O {[%clk 0:02:04]} 10. Ne5 {[%clk 0:01:57]}  h6 {[%clk 0:01:42]} 11. Bxf6 {[%clk 0:01:45]}  Bxf6 {[%clk 0:01:42]} 12. e4 {[%clk 0:01:42]}  dxe4 {[%clk 0:01:12]} 13. Nxe4 {[%clk 0:01:43]}  Bxe5 {[%clk 0:01:12]} 14. dxe5 {[%clk 0:01:43]}  Nc6 {[%clk 0:01:07]} 15. Qxd8 {[%clk 0:01:32]}  Raxd8 {[%clk 0:00:59]} 16. f4 {[%clk 0:01:32]}  Bd5 {[%clk 0:00:35]} 17. Rfd1 {[%clk 0:01:11]}  Nb4 {[%clk 0:00:19]} 18. Nd6 {[%clk 0:00:53]}  Bxg2 {[%clk 0:00:16]} 19. Kxg2 {[%clk 0:00:54]}  b5 {[%clk 0:00:14]} 20. Nxb5 {[%clk 0:00:47]}  Nd3 {[%clk 0:00:13]} 21. Rab1 {[%clk 0:00:20]}  Rd7 {[%clk 0:00:09]} 22. Nd6 {[%clk 0:00:18]}  f6 {[%clk 0:00:08]} 23. Nxc4 {[%clk 0:00:16]}  Rfd8 {[%clk 0:00:04]} 24. e6 {[%clk 0:00:12]}  Nxf4+ {[%clk 0:00:03]} 25. gxf4 {[%clk 0:00:08]}  Rxd1 {[%clk 0:00:03]} 26. e7 {[%clk 0:00:06]}  R1d2+ {[%clk 0:00:01]} 27. Kf3 {[%clk 0:00:02]}  Re8 {[%clk 0:00:01]} 28. Nxd2 {[%clk 0:00:02]}  Rxe7 {[%clk 0:00:01]} 29. Rc1 {[%clk 0:00:03]} 1-0


[Site "https://www.chess.com"]

[Event "Titled Tuesday Blitz May 10 Early 2022"]
[White "Onslow, Alfie"]
[Black "Perez Gormaz, Matias"]
[WhiteFideId "436976"]
[BlackFideId "3406342"]
[WhiteElo "1885"]
[BlackElo "2341"]
[Result "0-1"]
[Round "01"]
[TimeControl "180+1"]
[Date "2022.05.11"]
[WhiteClock "0:00:05"]
[BlackClock "0:00:07"]

1. e4 {[%clk 0:02:57]}  d5 {[%clk 0:02:59]} 2. exd5 {[%clk 0:02:55]}  Qxd5 {[%clk 0:03:00]} 3. Nf3 {[%clk 0:02:55]}  Bg4 {[%clk 0:02:56]} 4. Be2 {[%clk 0:02:53]}  Nc6 {[%clk 0:02:56]} 5. c4 {[%clk 0:02:50]}  Qf5 {[%clk 0:02:37]} 6. d4 {[%clk 0:02:42]}  O-O-O {[%clk 0:02:32]} 7. Be3 {[%clk 0:02:38]}  Nf6 {[%clk 0:01:57]} 8. d5 {[%clk 0:02:30]}  e6 {[%clk 0:01:40]} 9. Nd4 {[%clk 0:02:17]}  Nxd4 {[%clk 0:01:29]} 10. Qxd4 {[%clk 0:02:18]}  Bxe2 {[%clk 0:01:18]} 11. Kxe2 {[%clk 0:02:15]}  exd5 {[%clk 0:01:16]} 12. Qxa7 {[%clk 0:02:11]}  Qg4+ {[%clk 0:01:03]} 13. Ke1 {[%clk 0:01:22]}  Qxg2 {[%clk 0:00:50]} 14. Rf1 {[%clk 0:01:21]}  dxc4 {[%clk 0:00:45]} 15. Nc3 {[%clk 0:01:14]}  Qc6 {[%clk 0:00:31]} 16. a4 {[%clk 0:00:38]}  Bb4 {[%clk 0:00:29]} 17. a5 {[%clk 0:00:36]}  Qa6 {[%clk 0:00:18]} 18. Qxa6 {[%clk 0:00:25]}  bxa6 {[%clk 0:00:19]} 19. Ra4 {[%clk 0:00:25]}  Nd5 {[%clk 0:00:17]} 20. Ke2 {[%clk 0:00:24]}  Bxc3 {[%clk 0:00:15]} 21. Rxc4 {[%clk 0:00:22]}  Bxa5 {[%clk 0:00:14]} 22. Rfc1 {[%clk 0:00:22]}  Rd7 {[%clk 0:00:12]} 23. Rc5 {[%clk 0:00:22]}  Bb4 {[%clk 0:00:09]} 24. Rc6 {[%clk 0:00:19]}  Kb7 {[%clk 0:00:06]} 25. Kf3 {[%clk 0:00:13]}  a5 {[%clk 0:00:06]} 26. Bd4 {[%clk 0:00:12]}  f6 {[%clk 0:00:06]} 27. b3 {[%clk 0:00:12]}  Re8 {[%clk 0:00:06]} 28. R1c4 {[%clk 0:00:09]}  Bd6 {[%clk 0:00:06]} 29. Rc1 {[%clk 0:00:07]}  Nb4 {[%clk 0:00:07]} 30. R6c4 {[%clk 0:00:06]}  Be5 {[%clk 0:00:06]} 31. Be3 {[%clk 0:00:05]}  g5 {[%clk 0:00:06]} 32. h3 {[%clk 0:00:05]}  Bd6 {[%clk 0:00:06]} 33. Ra1 {[%clk 0:00:04]}  Re5 {[%clk 0:00:05]} 34. Ra4 {[%clk 0:00:04]}  h5 {[%clk 0:00:05]} 35. Bd4 {[%clk 0:00:04]}  Rf5+ {[%clk 0:00:05]} 36. Kg2 {[%clk 0:00:04]}  Rb5 {[%clk 0:00:06]} 37. Be3 {[%clk 0:00:04]}  f5 {[%clk 0:00:06]} 38. Bd2 {[%clk 0:00:04]}  f4 {[%clk 0:00:06]} 39. Bc3 {[%clk 0:00:04]}  g4 {[%clk 0:00:06]} 40. Bd2 {[%clk 0:00:05]}  f3+ {[%clk 0:00:07]} 41. Kg1 {[%clk 0:00:05]}  Rd5 {[%clk 0:00:08]} 42. Be1 {[%clk 0:00:05]}  Rd1 {[%clk 0:00:08]} 43. Kf1 {[%clk 0:00:05]}  Re7 {[%clk 0:00:08]} 44. Rcxb4+ {[%clk 0:00:05]}  axb4 {[%clk 0:00:08]} 45. Ra1 {[%clk 0:00:05]}  Rexe1# {[%clk 0:00:07]} 0-1


[Site "https://www.chess.com"]

[Event "Titled Tuesday Blitz May 10 Early 2022"]
[White "Ovezdurdyyeva, Jemal"]
[Black "Maevsky, Nikolay"]
[WhiteFideId "14001888"]
[BlackFideId "4198220"]
[WhiteElo "1946"]
[BlackElo "2149"]
[Result "1-0"]
[Round "01"]
[TimeControl "180+1"]
[Date "2022.05.11"]
[WhiteClock "0:00:48"]
[BlackClock "0:00:01"]

1. e4 {[%clk 0:02:53]}  c5 {[%clk 0:02:58]} 2. Nf3 {[%clk 0:02:53]}  Nf6 {[%clk 0:02:57]} 3. e5 {[%clk 0:02:49]}  Nd5 {[%clk 0:02:57]} 4. d4 {[%clk 0:02:49]}  cxd4 {[%clk 0:02:56]} 5. c3 {[%clk 0:02:47]}  e6 {[%clk 0:02:52]} 6. cxd4 {[%clk 0:02:47]}  d6 {[%clk 0:02:51]} 7. Nc3 {[%clk 0:02:45]}  Nxc3 {[%clk 0:02:48]} 8. bxc3 {[%clk 0:02:45]}  Nc6 {[%clk 0:02:43]} 9. Bf4 {[%clk 0:02:43]}  Be7 {[%clk 0:02:26]} 10. Bd3 {[%clk 0:02:40]}  dxe5 {[%clk 0:02:24]} 11. Nxe5 {[%clk 0:02:40]}  Nxe5 {[%clk 0:02:24]} 12. Bxe5 {[%clk 0:02:41]}  O-O {[%clk 0:02:20]} 13. Qc2 {[%clk 0:02:29]}  g6 {[%clk 0:02:10]} 14. O-O {[%clk 0:02:28]}  Bf6 {[%clk 0:02:07]} 15. f4 {[%clk 0:02:27]}  Bd7 {[%clk 0:02:01]} 16. Be4 {[%clk 0:02:24]}  Bc6 {[%clk 0:01:42]} 17. Rab1 {[%clk 0:02:15]}  Be7 {[%clk 0:01:23]} 18. Qd3 {[%clk 0:01:56]}  f6 {[%clk 0:01:17]} 19. Bxc6 {[%clk 0:01:55]}  bxc6 {[%clk 0:01:16]} 20. Qc4 {[%clk 0:01:54]}  Qd7 {[%clk 0:01:04]} 21. f5 {[%clk 0:01:53]}  fxe5 {[%clk 0:01:00]} 22. fxe6 {[%clk 0:01:50]}  Qd5 {[%clk 0:00:43]} 23. Qxd5 {[%clk 0:01:39]}  cxd5 {[%clk 0:00:42]} 24. Rb7 {[%clk 0:01:40]}  Rxf1+ {[%clk 0:00:38]} 25. Kxf1 {[%clk 0:01:41]}  Kf8 {[%clk 0:00:33]} 26. dxe5 {[%clk 0:01:34]}  Rc8 {[%clk 0:00:27]} 27. Rxa7 {[%clk 0:01:30]}  Rxc3 {[%clk 0:00:22]} 28. Ra8+ {[%clk 0:01:31]}  Kg7 {[%clk 0:00:22]} 29. Ra7 {[%clk 0:01:31]}  Kf8 {[%clk 0:00:17]} 30. Ra8+ {[%clk 0:01:31]}  Bd8 {[%clk 0:00:11]} 31. Rxd8+ {[%clk 0:01:29]}  Ke7 {[%clk 0:00:11]} 32. Rxd5 {[%clk 0:01:28]}  Kxe6 {[%clk 0:00:12]} 33. Ra5 {[%clk 0:01:28]}  Rc2 {[%clk 0:00:12]} 34. a3 {[%clk 0:01:25]}  h5 {[%clk 0:00:11]} 35. Ra6+ {[%clk 0:01:24]}  Kxe5 {[%clk 0:00:11]} 36. Rxg6 {[%clk 0:01:23]}  Ra2 {[%clk 0:00:11]} 37. Rg5+ {[%clk 0:01:22]}  Kf4 {[%clk 0:00:11]} 38. Rxh5 {[%clk 0:01:21]}  Rxa3 {[%clk 0:00:11]} 39. Rh4+ {[%clk 0:01:22]}  Kg5 {[%clk 0:00:11]} 40. Re4 {[%clk 0:01:21]}  Ra2 {[%clk 0:00:11]} 41. Re2 {[%clk 0:01:21]}  Ra3 {[%clk 0:00:11]} 42. Kf2 {[%clk 0:01:22]}  Kg4 {[%clk 0:00:11]} 43. Re4+ {[%clk 0:01:21]}  Kf5 {[%clk 0:00:11]} 44. Re2 {[%clk 0:01:20]}  Kg4 {[%clk 0:00:11]} 45. Rc2 {[%clk 0:01:21]}  Kf5 {[%clk 0:00:10]} 46. h3 {[%clk 0:01:21]}  Kf4 {[%clk 0:00:10]} 47. Rc4+ {[%clk 0:01:21]}  Kf5 {[%clk 0:00:10]} 48. Rd4 {[%clk 0:01:20]}  Kg5 {[%clk 0:00:09]} 49. Kg1 {[%clk 0:01:19]}  Kf5 {[%clk 0:00:08]} 50. Kh2 {[%clk 0:01:19]}  Kg5 {[%clk 0:00:08]} 51. h4+ {[%clk 0:01:14]}  Kh5 {[%clk 0:00:08]} 52. g3 {[%clk 0:01:14]}  Rb3 {[%clk 0:00:06]} 53. Kh3 {[%clk 0:01:14]}  Rb5 {[%clk 0:00:05]} 54. Rd8 {[%clk 0:01:07]}  Rb3 {[%clk 0:00:04]} 55. Rg8 {[%clk 0:01:06]}  Kh6 {[%clk 0:00:03]} 56. Rg5 {[%clk 0:01:03]}  Rc3 {[%clk 0:00:03]} 57. Rd5 {[%clk 0:01:03]}  Rb3 {[%clk 0:00:04]} 58. h5 {[%clk 0:01:02]}  Rc3 {[%clk 0:00:04]} 59. Kh4 {[%clk 0:01:03]}  Rc6 {[%clk 0:00:04]} 60. g4 {[%clk 0:01:02]}  Rc4 {[%clk 0:00:04]} 61. Rd6+ {[%clk 0:01:02]}  Kg7 {[%clk 0:00:04]} 62. h6+ {[%clk 0:01:01]}  Kh7 {[%clk 0:00:05]} 63. Kh5 {[%clk 0:01:01]}  Rc1 {[%clk 0:00:04]} 64. Rd7+ {[%clk 0:01:01]}  Kh8 {[%clk 0:00:04]} 65. g5 {[%clk 0:00:58]}  Rc6 {[%clk 0:00:02]} 66. Rf7 {[%clk 0:00:57]}  Rc8 {[%clk 0:00:02]} 67. Kg6 {[%clk 0:00:56]}  Rg8+ {[%clk 0:00:02]} 68. Kf6 {[%clk 0:00:55]}  Re8 {[%clk 0:00:01]} 69. g6 {[%clk 0:00:53]}  Rg8 {[%clk 0:00:01]} 70. Rh7# {[%clk 0:00:48]} 1-0


[Site "https://www.chess.com"]

[Event "Titled Tuesday Blitz May 10 Early 2022"]
[White "Panesar Vedant"]
[Black "Buscar, Michael"]
[WhiteFideId "35033018"]
[BlackFideId "2603616"]
[WhiteElo "1975"]
[BlackElo "2010"]
[Result "1-0"]
[Round "01"]
[TimeControl "180+1"]
[Date "2022.05.11"]
[WhiteClock "0:01:46"]
[BlackClock "0:00:35"]

1. d4 {[%clk 0:03:00]}  d5 {[%clk 0:02:56]} 2. Nf3 {[%clk 0:03:00]}  e6 {[%clk 0:02:55]} 3. Bf4 {[%clk 0:03:01]}  c5 {[%clk 0:02:53]} 4. e3 {[%clk 0:03:01]}  Nf6 {[%clk 0:02:52]} 5. Nbd2 {[%clk 0:03:00]}  c4 {[%clk 0:02:49]} 6. c3 {[%clk 0:02:56]}  Be7 {[%clk 0:02:48]} 7. Ne5 {[%clk 0:02:54]}  Nbd7 {[%clk 0:02:45]} 8. g4 {[%clk 0:02:52]}  Nf8 {[%clk 0:02:44]} 9. g5 {[%clk 0:02:48]}  N6d7 {[%clk 0:02:44]} 10. h4 {[%clk 0:02:45]}  Ng6 {[%clk 0:02:43]} 11. Nxg6 {[%clk 0:02:42]}  hxg6 {[%clk 0:02:41]} 12. Bg2 {[%clk 0:02:43]}  Qb6 {[%clk 0:02:34]} 13. b3 {[%clk 0:02:42]}  cxb3 {[%clk 0:02:33]} 14. axb3 {[%clk 0:02:43]}  Bd6 {[%clk 0:02:33]} 15. Bxd6 {[%clk 0:02:39]}  Qxd6 {[%clk 0:02:33]} 16. c4 {[%clk 0:02:40]}  dxc4 {[%clk 0:02:18]} 17. bxc4 {[%clk 0:02:36]}  e5 {[%clk 0:02:02]} 18. c5 {[%clk 0:02:33]}  Qc7 {[%clk 0:01:58]} 19. Nc4 {[%clk 0:02:32]}  exd4 {[%clk 0:01:48]} 20. Nd6+ {[%clk 0:02:31]}  Kf8 {[%clk 0:01:47]} 21. exd4 {[%clk 0:02:30]}  Kg8 {[%clk 0:01:34]} 22. Bd5 {[%clk 0:02:28]}  Kh7 {[%clk 0:01:21]} 23. h5 {[%clk 0:02:27]}  Kg8 {[%clk 0:01:00]} 24. Qf3 {[%clk 0:02:15]}  Nf6 {[%clk 0:00:52]} 25. gxf6 {[%clk 0:02:14]}  Be6 {[%clk 0:00:52]} 26. Bxe6 {[%clk 0:02:07]}  fxe6 {[%clk 0:00:52]} 27. f7+ {[%clk 0:02:06]}  Kf8 {[%clk 0:00:51]} 28. hxg6 {[%clk 0:02:06]}  Ke7 {[%clk 0:00:44]} 29. Ke2 {[%clk 0:02:03]}  Rxh1 {[%clk 0:00:37]} 30. Rxh1 {[%clk 0:02:00]}  Qa5 {[%clk 0:00:37]} 31. Qxb7+ {[%clk 0:01:59]}  Kf6 {[%clk 0:00:38]} 32. Qxa8 {[%clk 0:01:46]}  Qa2+ {[%clk 0:00:35]} 33. Kf3 {[%clk 0:01:46]} 1-0


[Site "https://www.chess.com"]

[Event "Titled Tuesday Blitz May 10 Early 2022"]
[White "Pasti, Aron"]
[Black "Cherniaiev, Tykhon"]
[WhiteFideId "785857"]
[BlackFideId "14182360"]
[WhiteElo "2133"]
[BlackElo "2289"]
[Result "1-0"]
[Round "01"]
[TimeControl "180+1"]
[Date "2022.05.11"]
[WhiteClock "0:00:04"]
[BlackClock "0:00:02"]

1. e4 {[%clk 0:02:59]}  c5 {[%clk 0:02:54]} 2. Nf3 {[%clk 0:02:58]}  e6 {[%clk 0:02:50]} 3. d4 {[%clk 0:02:53]}  cxd4 {[%clk 0:02:51]} 4. Nxd4 {[%clk 0:02:54]}  a6 {[%clk 0:02:51]} 5. Bd3 {[%clk 0:02:53]}  Qc7 {[%clk 0:02:51]} 6. O-O {[%clk 0:02:52]}  Nf6 {[%clk 0:02:51]} 7. c4 {[%clk 0:02:52]}  Nc6 {[%clk 0:02:51]} 8. Nxc6 {[%clk 0:02:42]}  dxc6 {[%clk 0:02:50]} 9. Qe2 {[%clk 0:02:42]}  e5 {[%clk 0:02:50]} 10. Nc3 {[%clk 0:02:41]}  Be7 {[%clk 0:02:50]} 11. f4 {[%clk 0:02:40]}  O-O {[%clk 0:02:50]} 12. Kh1 {[%clk 0:02:40]}  Bg4 {[%clk 0:02:45]} 13. Qf2 {[%clk 0:02:37]}  Rad8 {[%clk 0:02:44]} 14. Bc2 {[%clk 0:02:37]}  Be6 {[%clk 0:02:44]} 15. b3 {[%clk 0:02:35]}  Qa5 {[%clk 0:02:40]} 16. Ne2 {[%clk 0:02:20]}  exf4 {[%clk 0:02:32]} 17. Nxf4 {[%clk 0:02:16]}  Qe5 {[%clk 0:02:31]} 18. Nxe6 {[%clk 0:02:09]}  fxe6 {[%clk 0:02:13]} 19. Bf4 {[%clk 0:02:05]}  Qh5 {[%clk 0:01:53]} 20. e5 {[%clk 0:02:02]}  Ng4 {[%clk 0:01:52]} 21. Qg3 {[%clk 0:02:01]}  Bh4 {[%clk 0:00:54]} 22. Qh3 {[%clk 0:02:01]}  g5 {[%clk 0:00:44]} 23. Bg3 {[%clk 0:01:51]}  Rd2 {[%clk 0:00:28]} 24. Rxf8+ {[%clk 0:01:44]}  Kxf8 {[%clk 0:00:27]} 25. Be4 {[%clk 0:01:26]}  Rd4 {[%clk 0:00:21]} 26. Bf3 {[%clk 0:01:13]}  Ke7 {[%clk 0:00:21]} 27. Bxh4 {[%clk 0:01:10]}  gxh4 {[%clk 0:00:19]} 28. Bxg4 {[%clk 0:01:02]}  Rxg4 {[%clk 0:00:19]} 29. Rf1 {[%clk 0:00:59]}  Rf4 {[%clk 0:00:16]} 30. Qd3 {[%clk 0:00:42]}  Rxf1+ {[%clk 0:00:15]} 31. Qxf1 {[%clk 0:00:42]}  Qxe5 {[%clk 0:00:16]} 32. h3 {[%clk 0:00:41]}  Qf6 {[%clk 0:00:13]} 33. Qd3 {[%clk 0:00:40]}  h6 {[%clk 0:00:07]} 34. Qe3 {[%clk 0:00:37]}  e5 {[%clk 0:00:06]} 35. Qc5+ {[%clk 0:00:37]}  Qd6 {[%clk 0:00:05]} 36. Qb6 {[%clk 0:00:36]}  e4 {[%clk 0:00:04]} 37. Qxb7+ {[%clk 0:00:35]}  Kf6 {[%clk 0:00:04]} 38. Qb6 {[%clk 0:00:25]}  Qd1+ {[%clk 0:00:03]} 39. Kh2 {[%clk 0:00:25]}  Qd6+ {[%clk 0:00:04]} 40. Kh1 {[%clk 0:00:20]}  Kf5 {[%clk 0:00:04]} 41. Qf2+ {[%clk 0:00:19]}  Qf4 {[%clk 0:00:04]} 42. Qc5+ {[%clk 0:00:18]}  Qe5 {[%clk 0:00:03]} 43. Qf2+ {[%clk 0:00:16]}  Kg5 {[%clk 0:00:03]} 44. Qe3+ {[%clk 0:00:15]}  Qf4 {[%clk 0:00:03]} 45. Qc5+ {[%clk 0:00:16]}  Qf5 {[%clk 0:00:04]} 46. Qe3+ {[%clk 0:00:12]}  Kg6 {[%clk 0:00:04]} 47. Kg1 {[%clk 0:00:11]}  Qe5 {[%clk 0:00:03]} 48. a4 {[%clk 0:00:10]}  a5 {[%clk 0:00:03]} 49. c5 {[%clk 0:00:09]}  h5 {[%clk 0:00:03]} 50. Kf2 {[%clk 0:00:09]}  Kf5 {[%clk 0:00:03]} 51. Kf1 {[%clk 0:00:08]}  Qa1+ {[%clk 0:00:03]} 52. Ke2 {[%clk 0:00:08]}  Qb2+ {[%clk 0:00:03]} 53. Kf1 {[%clk 0:00:09]}  Qe5 {[%clk 0:00:03]} 54. Ke2 {[%clk 0:00:08]}  Qf4 {[%clk 0:00:03]} 55. Qd4 {[%clk 0:00:04]}  Qg3 {[%clk 0:00:02]} 56. Qd7+ {[%clk 0:00:03]}  Kg5 {[%clk 0:00:02]} 57. Qg7+ {[%clk 0:00:04]}  Kf4 {[%clk 0:00:02]} 58. Qf6# {[%clk 0:00:04]} 1-0


[Site "https://www.chess.com"]